bitfinex-derivatives/quotes_SOLF0:USTF0_20250823
["timestamp","ask_amount","ask_price","bid_price","bid_amount"]
[1755937586547,2.0,203.19,203.18,4.6148073]
[1755937586745,2.0,203.19,203.08,135.7]
[1755937586944,2.0,203.19,203.09,4.61389847]
[1755937587152,4.925,203.12,203.1,4.61389847]
[1755937587352,4.925,203.12,203.11,4.61389847]
[1755937588454,4.9243,203.14,203.11,4.61389847]
[1755937588652,4.9243,203.14,203.12,4.61389847]
[1755937588850,4.9243,203.14,203.13,4.61389847]
[1755937589355,6.9243,203.14,203.13,4.61389847]
[1755937589553,6.9243,203.14,203.01,331.24]
[1755937589554,4.9255,203.1,203.01,2.65]
[1755937589854,4.9255,203.1,203.02,3.99472329]
[1755937590046,4.9255,203.1,203.01,2.65]
[1755937590245,4.9255,203.1,203.02,3.99462438]
[1755937590451,4.9258,203.09,203.01,2.65]
[1755937590650,26.6221,203.14,203.01,2.65]
[1755937591354,2.0,203.14,203.01,2.65]
[1755937592055,26.6221,203.14,203.01,2.65]
[1755937593658,4.9258,203.09,203.01,2.65]
[1755937593951,2.0,203.14,203.03,2.58]
[1755937594157,4.9247,203.13,203.03,2.58]
[1755937594558,4.9247,203.13,203.05,2.58]
[1755937595058,2.0,203.18,203.05,2.58]
[1755937595059,4.9242,203.15,203.05,2.58]
[1755937595461,4.9242,203.15,203.05,7.5064]
[1755937595654,4.9242,203.15,203.05,2.58]
[1755937595954,4.9242,203.15,203.06,4.09483089]
[1755937596158,2.0,203.22,203.07,8.55188309]
[1755937596359,24.6137,203.21,203.08,145.87157481]
[1755937596561,24.6137,203.21,203.09,4.45818379]
[1755937596759,4.9238,203.17,203.1,4.45818379]
[1755937596955,4.9238,203.17,203.11,4.45818379]
[1755937597153,4.9238,203.17,203.08,137.32]
[1755937597350,4.9238,203.17,203.09,4.45546542]
[1755937597549,4.9233,203.19,203.1,4.45546542]
[1755937597753,4.9233,203.19,203.11,7.03546542]
[1755937597951,4.9233,203.19,203.12,4.45546542]
[1755937598255,4.9233,203.19,203.11,2.58]
[1755937598455,293.26666632,203.27,203.12,4.44607087]
[1755937598656,2.0,203.26,203.13,7.02607087]
[1755937598854,2.0,203.26,203.14,4.44607087]
[1755937599052,2.0,203.26,203.13,7.5045]
[1755937599259,2.0,203.26,203.14,4.4456352]
[1755937599559,2.0,203.26,203.15,4.4456352]
[1755937599757,2.0,203.26,203.16,7.0256352]
[1755937599954,2.0,203.26,203.17,4.4456352]
[1755937600153,2.0,203.26,203.17,134.4]
[1755937600355,2.0,203.31,203.18,7.01996328]
[1755937600551,2.0,203.31,203.19,4.4396688]
[1755937600749,2.0,203.31,203.18,2.58]
[1755937600954,2.0,203.29,203.18,2.58]
[1755937601355,2.0,203.29,203.19,4.43744244]
[1755937601554,2.0,203.29,203.2,4.59050881]
[1755937601763,2.0,203.29,203.21,4.59050881]
[1755937601960,2.0,203.29,203.22,4.59050881]
[1755937602162,2.0,203.29,203.18,2.58]
[1755937602461,2.0,203.29,203.19,4.59048504]
[1755937602655,2.0,203.29,203.2,4.59048504]
[1755937602852,2.0,203.29,203.21,4.58800517]
[1755937603165,2.0,203.23,203.15,134.28]
[1755937603352,2.0,203.23,203.16,4.58737303]
[1755937603555,2.0,203.23,203.17,4.58737303]
[1755937603752,2.0,203.23,203.18,4.58737303]
[1755937604057,26.6053,203.28,203.19,4.58737303]
[1755937604355,4.922,203.24,203.2,7.16737303]
[1755937604563,2.0,203.28,203.21,4.58737303]
[1755937604751,2.0,203.28,203.22,4.58737303]
[1755937604953,2.0,203.24,203.15,136.66]
[1755937605263,2.0,203.24,203.16,9.01940665]
[1755937605562,4.9228,203.21,203.17,4.58619111]
[1755937605752,4.9228,203.21,203.18,4.58619111]
[1755937605951,2.0,203.24,203.19,4.58619111]
[1755937606155,4.9226,203.22,203.2,4.58619111]
[1755937606360,4.9226,203.22,203.21,4.58454419]
[1755937606859,4.9226,203.22,203.15,136.64]
[1755937607059,4.9229,203.2,203.16,4.58492912]
[1755937607264,4.9229,203.2,203.17,4.58492912]
[1755937607556,4.9229,203.2,203.18,4.58492912]
[1755937607765,4.9229,203.2,203.19,4.58492912]
[1755937609060,4.9225,203.22,203.19,4.58492912]
[1755937609255,26.6091,203.25,203.2,4.58492912]
[1755937609256,2.0,203.24,203.2,4.58492912]
[1755937609461,24.6091,203.25,203.15,136.64]
[1755937609666,24.6091,203.25,203.16,4.58492628]
[1755937609864,24.6091,203.25,203.17,4.58492628]
[1755937610057,4.9231,203.2,203.18,4.58492628]
[1755937610262,4.9231,203.2,203.19,4.58492628]
[1755937610570,4.9225,203.22,203.19,4.58492628]
[1755937610768,4.9225,203.22,203.2,7.16492628]
[1755937610963,4.9225,203.22,203.21,4.58492628]
[1755937611169,26.6064,203.27,203.21,4.58492628]
[1755937611170,4.922,203.24,203.21,4.58492628]
[1755937611468,2.0,203.27,203.21,2.58]
[1755937611771,4.9224,203.23,203.22,4.58398279]
[1755937611963,4.9224,203.23,203.21,2.58]
[1755937612163,4.9224,203.23,203.22,4.58391135]
[1755937612767,2.0,203.27,203.16,136.06]
[1755937613069,2.0,203.27,203.17,4.58357517]
[1755937613265,2.0,203.27,203.19,2.58]
[1755937613473,2.0,203.27,203.2,4.58357517]
[1755937613769,24.6029,203.3,203.21,4.58357517]
[1755937613970,24.6042,203.29,203.22,4.58357517]
[1755937614170,24.6042,203.29,203.23,4.58357517]
[1755937614374,2.0,203.28,203.24,4.58357517]
[1755937614565,2.0,203.28,203.19,2.58]
[1755937614766,2.0,203.28,203.2,4.58247616]
[1755937614965,4.9218,203.25,203.21,4.58247616]
[1755937615166,4.9218,203.25,203.22,7.16247616]
[1755937615370,4.9218,203.25,203.23,4.58247616]
[1755937615571,2.0,203.28,203.24,4.58247616]
[1755937615772,2.0,203.28,203.23,2.58]
[1755937615974,2.0,203.28,203.24,4.58286106]
[1755937616270,4.9216,203.26,203.19,6.23023913]
[1755937616473,2.0,203.29,203.2,4.58354913]
[1755937616772,2.0,203.29,203.21,4.58354913]
[1755937616972,2.0,203.29,203.22,4.58354913]
[1755937617173,2.0,203.29,203.23,4.58354913]
[1755937617374,4.9219,203.25,203.24,4.58354913]
[1755937620879,4.9219,203.25,203.24,4.58960659]
[1755937621680,6.9219,203.25,203.24,4.59208633]
[1755937621874,4.9219,203.25,203.24,4.59208633]
[1755937622580,2.0,203.24,203.14,2.58]
[1755937622779,2.0,203.24,203.15,13.16861835]
[1755937622969,2.0,203.24,203.12,132.58]
[1755937622970,6.9238,203.17,203.16,9.03798058]
[1755937623179,6.9238,203.17,203.16,4.5956044]
[1755937623781,4.9233,203.19,203.16,4.5956044]
[1755937623982,24.6066,203.27,203.17,4.5956044]
[1755937624179,2.0,203.21,203.18,4.5956044]
[1755937624481,2.0,203.25,203.19,4.5956044]
[1755937624682,2.0,203.24,203.2,4.5956044]
[1755937624871,2.0,203.27,203.21,4.5956044]
[1755937625072,24.6052,203.28,203.22,4.5956044]
[1755937625376,2.0,203.24,203.23,4.5956044]
[1755937625576,6.922,203.24,203.13,4.9245]
[1755937625878,2.0,203.24,203.14,13.1298005]
[1755937626076,4.9228,203.21,203.15,9.04924784]
[1755937626276,6.9228,203.21,203.16,9.04924784]
[1755937626477,2.0,203.2,203.17,4.60134564]
[1755937626680,2.0,203.19,203.18,4.60134564]
[1755937627375,4.9239,203.16,203.08,2.74]
[1755937627572,4.9239,203.16,203.09,13.164598]
[1755937627882,4.9239,203.16,203.1,9.08167761]
[1755937628082,6.9239,203.16,203.11,9.08167761]
[1755937628286,24.6154,203.2,203.12,9.08167761]
[1755937628585,2.0,203.14,203.13,4.60411719]
[1755937628980,6.9245,203.14,203.13,4.60411719]
[1755937629185,2.0,203.14,203.13,4.60574608]
[1755937629777,4.925,203.12,203.05,2.74]
[1755937630081,2.0,203.14,203.06,9.08416139]
[1755937630294,2.0,203.08,203.07,4.60534458]
[1755937633178,4.9261,203.07,203.01,2.74]
[1755937633380,4.9261,203.07,203.03,2.74]
[1755937633580,6.9261,203.07,203.04,4.61692865]
[1755937633785,2.0,203.12,203.05,4.61692865]
[1755937633984,2.0,203.12,203.06,4.61692865]
[1755937634281,2.0,203.16,203.07,4.61692865]
[1755937634585,2.0,203.16,203.08,4.61692865]
[1755937634786,2.0,203.16,203.06,2.74]
[1755937634987,2.0,203.16,203.07,4.61342665]
[1755937635183,2.0,203.16,203.06,2.74]
[1755937635384,2.0,203.16,203.07,4.61348129]
[1755937635585,2.0,203.19,203.02,2.74]
[1755937635780,2.0,203.19,203.03,4.61260065]
[1755937635984,4.9255,203.1,203.04,4.61260065]
[1755937636180,2.0,203.1,203.05,4.61260065]
[1755937636386,2.0,203.1,203.06,4.61260065]
[1755937636582,2.0,203.1,203.03,2.74]
[1755937636786,2.0,203.1,203.04,4.61191915]
[1755937637089,2.0,203.14,203.05,4.61191915]
[1755937637387,2.0,203.14,203.06,4.61191915]
[1755937637586,2.0,203.14,203.03,2.74]
[1755937637892,2.0,203.14,203.04,4.61136422]
[1755937638085,2.0,203.14,203.05,4.61136422]
[1755937638388,2.0,203.14,203.01,6.23023913]
[1755937638389,2.0,203.14,203.07,2.74]
[1755937639793,26.6174,203.18,203.07,2.74]
[1755937639993,4.9243,203.15,203.07,2.74]
[1755937640290,4.9243,203.15,203.08,7.34999501]
[1755937640482,4.9243,203.15,203.08,2.74]
[1755937640893,26.6176,203.18,203.08,2.74]
[1755937641591,4.9241,203.15,203.09,4.60869541]
[1755937641784,4.9241,203.15,203.08,2.74]
[1755937641990,4.9241,203.15,203.09,4.60869541]
[1755937642184,4.9241,203.15,203.08,2.74]
[1755937642388,4.9245,203.14,203.09,4.60815212]
[1755937642588,2.0,203.17,203.03,2.74]
[1755937642788,2.0,203.17,203.04,4.60810032]
[1755937642989,2.0,203.17,203.05,4.60810032]
[1755937643187,26.6184,203.17,203.06,7.34810032]
[1755937643388,26.6184,203.17,203.07,4.60810032]
[1755937643590,4.9248,203.13,203.06,2.74]
[1755937643793,4.9248,203.13,203.07,4.60752749]
[1755937644093,2.0,203.17,203.09,2.74]
[1755937644388,2.0,203.13,203.03,2.74]
[1755937644786,2.0,203.13,203.04,4.6078789]
[1755937644992,4.9255,203.1,203.05,4.6078789]
[1755937645187,2.0,203.13,203.02,2.74]
[1755937645389,4.9257,203.09,203.03,4.60695024]
[1755937645593,4.9257,203.09,203.05,2.74]
[1755937646692,4.9252,203.11,203.05,2.74]
[1755937647292,4.9258,203.08,202.98,4.928]
[1755937647495,2.0,203.12,203.0,2.74]
[1755937647997,4.9261,203.07,203.01,4.60668973]
[1755937648295,2.0,203.12,203.03,2.74]
[1755937648498,2.0,203.12,203.04,4.60668973]
[1755937648689,4.9252,203.11,203.05,4.60668973]
[1755937648889,2.0,203.17,203.07,2.74]
[1755937650105,24.6196,203.16,203.07,2.74]
[1755937650400,2.0,203.17,203.07,2.74]
[1755937651302,2.0,203.17,203.08,4.60593281]
[1755937651499,2.0,203.17,203.09,4.60593281]
[1755937651700,2.0,203.17,203.07,2.74]
[1755937651894,2.0,203.17,203.08,4.60612963]
[1755937652093,2.0,203.17,203.07,2.74]
[1755937652293,6.9256,203.09,203.0,2.74]
[1755937652604,2.0,203.13,203.02,2.74]
[1755937652807,2.0,203.13,203.03,4.60653238]
[1755937653008,2.0,203.13,203.04,4.60653238]
[1755937653203,2.0,203.13,203.05,4.60653238]
[1755937653409,2.0,203.13,203.06,4.60653238]
[1755937653602,2.0,203.13,203.02,2.74]
[1755937653808,24.6245,203.12,203.03,4.60673675]
[1755937654013,2.0,203.11,203.0,2.83]
[1755937654306,2.0,203.11,203.01,4.60718384]
[1755937654515,2.0,203.11,203.02,4.60718384]
[1755937654707,2.0,203.11,203.03,4.60718384]
[1755937654908,4.9262,203.07,203.0,2.83]
[1755937655102,4.9262,203.07,203.01,4.60726424]
[1755937655304,2.0,203.15,203.03,2.83]
[1755937655504,4.9255,203.1,203.04,4.60726424]
[1755937655705,24.6221,203.14,203.05,7.43726424]
[1755937655901,2.0,203.15,203.06,4.60726424]
[1755937656210,26.621,203.15,203.07,4.60726424]
[1755937656411,26.621,203.15,203.04,2.83]
[1755937656611,26.621,203.15,203.05,4.6073148]
[1755937656806,26.621,203.15,203.06,4.6073148]
[1755937657206,26.621,203.15,203.07,4.60785192]
[1755937657405,26.621,203.15,203.04,2.83]
[1755937657710,2.0,203.15,203.05,4.60899302]
[1755937658014,2.0,203.15,203.06,7.43886524]
[1755937658207,4.9247,203.13,203.07,4.60886524]
[1755937658407,2.0,203.15,203.08,7.43886524]
[1755937658710,2.0,203.15,203.08,2.83]
[1755937659108,2.0,203.11,203.0,2.83]
[1755937659308,2.0,203.11,203.01,9.09855909]
[1755937659511,2.0,203.11,203.02,11.92838588]
[1755937659713,2.0,203.11,203.03,4.61262388]
[1755937659914,2.0,203.11,203.04,4.61262388]
[1755937660215,2.0,203.11,203.05,4.61262388]
[1755937660408,2.0,203.11,203.06,4.61262388]
[1755937660713,2.0,203.11,203.07,4.61262388]
[1755937661014,4.9257,203.09,203.02,2.83]
[1755937661209,4.9257,203.09,203.03,9.08768254]
[1755937661514,4.9257,203.09,203.05,2.83]
[1755937661813,4.9257,203.09,203.06,4.59783515]
[1755937662018,4.9257,203.09,203.07,4.59783515]
[1755937662219,4.9257,203.09,203.05,2.83]
[1755937662418,4.9257,203.09,203.06,7.43318988]
[1755937662715,4.9257,203.09,203.07,4.60318988]
[1755937662911,4.9257,203.09,203.06,2.83]
[1755937663115,4.9257,203.09,203.07,4.60306534]
[1755937663308,4.9252,203.11,203.08,4.60607177]
[1755937663513,4.9252,203.11,203.09,4.60607177]
[1755937663715,2.0,203.15,203.04,2.83]
[1755937663911,4.9246,203.13,203.06,2.83]
[1755937664109,4.9246,203.13,203.07,4.60638645]
[1755937664314,2.0,203.23,203.09,7.7553]
[1755937664511,30.84493913,203.2,203.1,9.10592533]
[1755937664712,2.0,203.19,203.11,4.60638645]
[1755937664919,2.0,203.19,203.12,4.60638645]
[1755937665117,2.0,203.17,203.13,4.60638645]
[1755937665315,2.0,203.15,203.14,4.60638645]
[1755937666018,6.9241,203.15,203.14,4.60638645]
[1755937666525,2.0,203.15,203.04,2.83]
[1755937666722,2.0,203.15,203.05,9.40420146]
[1755937666918,2.0,203.15,203.06,9.40420146]
[1755937667121,2.0,203.15,203.07,9.40420146]
[1755937667422,2.0,203.15,203.08,4.90372498]
[1755937667617,2.0,203.15,203.04,2.83]
[1755937667618,2.0,203.15,203.09,4.90372498]
[1755937667820,4.9252,203.11,203.1,4.90372498]
[1755937668722,6.9252,203.11,203.1,4.90372498]
[1755937669119,6.9252,203.11,203.1,2.498e-05]
[1755937669313,2.5,203.11,202.99,2.83]
[1755937669513,2.0,203.11,203.0,4.56132892]
[1755937669713,2.0,203.11,203.01,4.56119838]
[1755937669914,4.9265,203.06,203.02,4.56119838]
[1755937670114,4.9265,203.06,203.03,4.56119838]
[1755937670314,4.9265,203.06,203.04,4.56119838]
[1755937670520,4.9265,203.06,202.97,4.9284]
[1755937670725,4.9265,203.06,203.02,2.83]
[1755937670926,4.9265,203.06,203.03,4.56469474]
[1755937671118,4.9265,203.06,203.04,4.56469474]
[1755937671323,4.9265,203.06,203.02,2.83]
[1755937671526,4.9265,203.06,203.03,4.56810559]
[1755937671821,4.9265,203.06,203.02,2.83]
[1755937672126,4.9265,203.06,203.03,4.5684141]
[1755937672324,4.9265,203.06,203.02,2.83]
[1755937672520,4.9265,203.06,203.03,4.56912542]
[1755937672724,6.9265,203.06,202.98,2.83]
[1755937672919,4.9259,203.08,202.99,4.56912542]
[1755937673116,4.9259,203.08,203.0,4.56912542]
[1755937673327,4.9259,203.08,203.01,4.56912542]
[1755937673620,4.9262,203.07,203.02,7.39912542]
[1755937673820,2.0,203.1,203.03,4.56912542]
[1755937674017,2.0,203.13,203.04,4.56912542]
[1755937674219,4.9249,203.12,203.06,2.83]
[1755937674422,4.9249,203.12,203.07,7.39912542]
[1755937674623,4.9249,203.12,203.07,2.83]
[1755937674823,4.9249,203.12,203.06,2.83]
[1755937675021,4.9249,203.12,203.08,2.83]
[1755937675725,6.9249,203.12,203.08,2.83]
[1755937676025,24.6234,203.13,203.0,4.9276]
[1755937676226,2.0,203.12,203.02,2.83]
[1755937676418,2.0,203.12,203.03,4.82747715]
[1755937676623,2.0,203.12,203.04,4.82728495]
[1755937676822,2.0,203.12,203.05,4.82728495]
[1755937677020,26.6257,203.11,203.06,4.82728495]
[1755937677225,6.23023913,203.08,202.85,4.12668109]
[1755937677429,345.96,203.12,202.86,1.31410382]
[1755937677430,6.23023913,202.94,202.86,1.31410382]
[1755937677628,0.5,202.94,202.74,4.12668109]
[1755937677923,6.23023913,202.85,202.75,4.16550842]
[1755937678127,6.23023913,202.85,202.71,2.83]
[1755937678326,132.06,202.86,202.72,4.08001596]
[1755937678533,132.12,202.91,202.73,6.90994596]
[1755937678824,6.23023913,202.86,202.73,5.83]
[1755937679021,6.23023913,202.83,202.73,5.83]
[1755937679225,6.23023913,202.83,202.73,3.0]
[1755937679423,11.16223913,202.83,202.73,3.0]
[1755937680328,4.9324,202.81,202.73,3.0]
[1755937680532,156.979617,202.84,202.73,3.0]
[1755937680927,4.933,202.79,202.73,3.0]
[1755937681626,9.919617,202.8,202.73,3.0]
[1755937682134,9.919617,202.8,202.62,2.83]
[1755937682430,24.6598,202.83,202.62,2.83]
[1755937682627,331.3,202.84,202.66,7.7659]
[1755937682827,132.28,202.83,202.66,7.7659]
[1755937683228,331.3,202.84,202.68,2.83]
[1755937683735,331.3,202.84,202.74,29.6045]
[1755937683930,331.3,202.84,202.73,2.67]
[1755937684125,132.34,202.88,202.73,2.67]
[1755937685137,132.34,202.88,202.69,24.6763]
[1755937685738,24.6567,202.86,202.68,2.67]
[1755937685935,9.919617,202.84,202.61,2.67]
[1755937686224,24.6641,202.8,202.61,2.67]
[1755937686432,132.58,202.79,202.61,2.67]
[1755937686732,4.9337,202.76,202.61,7.6071]
[1755937687138,142.499617,202.79,202.61,7.6071]
[1755937687337,4.9342,202.74,202.61,7.6071]
[1755937688032,4.9342,202.74,202.63,4.9367]
[1755937688238,0.85861265,202.76,202.63,4.9367]
[1755937688438,132.52,202.75,202.63,4.9367]
[1755937688836,132.48,202.74,202.63,4.9367]
[1755937689035,25.52681265,202.76,202.61,2.67]
[1755937689537,132.38,202.75,202.62,4.937]
[1755937689730,132.42,202.74,202.61,2.67]
[1755937690641,4.9346,202.72,202.61,7.6072]
[1755937691941,132.52,202.73,202.61,2.67]
[1755937692331,132.52,202.73,202.62,4.9369]
[1755937692535,132.52,202.73,202.61,27.3562]
[1755937692734,132.52,202.73,202.61,2.67]
[1755937692940,4.9346,202.72,202.61,7.6072]
[1755937694040,132.52,202.73,202.63,4.9367]
[1755937694844,137.4544,202.73,202.61,2.67]
[1755937695038,0.85878216,202.71,202.54,2.67]
[1755937695235,0.85878216,202.71,202.55,4.9385]
[1755937695537,0.85878216,202.71,202.54,27.3648]
[1755937695738,4.9345,202.73,202.54,24.6948]
[1755937695939,132.4,202.72,202.55,2.67]
[1755937696842,132.4,202.72,202.63,4.9367]
[1755937697141,4.9348,202.71,202.61,2.67]
[1755937697342,132.4,202.72,202.62,4.937]
[1755937697535,132.4,202.72,202.61,2.67]
[1755937698143,137.3346,202.72,202.63,4.9365]
[1755937698441,0.85875037,202.76,202.61,2.67]
[1755937698642,132.28,202.75,202.61,2.67]
[1755937699132,4.9341,202.74,202.61,2.67]
[1755937699336,132.2,202.74,202.56,24.6921]
[1755937699543,132.2,202.73,202.58,24.69]
[1755937700040,132.2,202.73,202.6,4.9375]
[1755937700342,132.2,202.73,202.57,2.67]
[1755937700543,4.935,202.71,202.6,4.9374]
[1755937700741,4.935,202.71,202.57,2.67]
[1755937701440,4.935,202.71,202.57,27.3606]
[1755937701944,132.02,202.72,202.61,2.67]
[1755937702832,132.02,202.72,202.63,4.9365]
[1755937703231,0.85875037,202.76,202.63,4.9365]
[1755937703440,131.84,202.75,202.63,4.9365]
[1755937703945,24.6693,202.75,202.63,4.9365]
[1755937704140,131.84,202.74,202.61,2.67]
[1755937704539,24.6716,202.73,202.56,2.67]
[1755937705336,24.6739,202.71,202.56,2.67]
[1755937705537,24.6716,202.73,202.56,2.67]
[1755937705742,131.66,202.72,202.56,2.67]
[1755937705938,24.6716,202.73,202.56,2.67]
[1755937706142,24.6744,202.71,202.56,2.67]
[1755937706644,4.9353,202.69,202.61,4.937]
[1755937708042,4.9357,202.68,202.61,4.937]
[1755937708440,131.66,202.72,202.5,0.58680808]
[1755937708643,24.6705,202.74,202.55,2.67]
[1755937708946,131.52,202.71,202.55,2.67]
[1755937709548,4.9359,202.67,202.55,2.67]
[1755937709852,131.52,202.71,202.55,2.67]
[1755937710051,4.9357,202.68,202.6,4.9372]
[1755937710547,131.52,202.71,202.58,2.67]
[1755937710548,4.9359,202.67,202.58,2.67]
[1755937710751,131.52,202.71,202.58,2.67]
[1755937712153,4.9357,202.68,202.6,4.9373]
[1755937712349,131.52,202.71,202.6,4.9373]
[1755937712549,2.68,202.7,202.53,24.6951]
[1755937713456,2.68,202.7,202.59,4.9375]
[1755937713849,4.9359,202.67,202.59,4.9375]
[1755937714552,4.9361,202.66,202.59,7.6275]
[1755937714757,2.68,202.68,202.59,2.69]
[1755937715451,4.9365,202.64,202.59,2.69]
[1755937715853,4.9365,202.64,202.6,2.69]
[1755937716250,4.9365,202.64,202.61,2.69]
[1755937716458,4.936,202.66,202.61,2.69]
[1755937716653,4.936,202.66,202.54,2.69]
[1755937717056,4.9364,202.65,202.54,27.3845]
[1755937717255,2.68,202.68,202.53,2.69]
[1755937718256,2.68,202.68,202.54,3.98250136]
[1755937718460,2.68,202.68,202.58,7.6278]
[1755937718650,2.68,202.73,202.58,2.69]
[1755937719855,4.9361,202.66,202.59,4.9375]
[1755937720060,27.3558,202.7,202.59,4.9375]
[1755937720358,2.68,202.69,202.58,2.69]
[1755937720558,2.68,202.69,202.59,3.95412167]
[1755937720757,2.68,202.69,202.6,3.95412167]
[1755937720958,27.3565,202.69,202.61,3.95412167]
[1755937721254,27.3565,202.69,202.58,2.69]
[1755937721255,2.68,202.69,202.58,2.69]
[1755937721452,4.9368,202.63,202.59,3.96628462]
[1755937721657,4.9368,202.63,202.6,3.96628462]
[1755937721854,4.9368,202.63,202.61,3.96628462]
[1755937722047,4.9368,202.63,202.6,2.69]
[1755937722248,4.9368,202.63,202.61,3.96628378]
[1755937722454,4.9374,202.6,202.54,8.96045354]
[1755937722653,4.9374,202.6,202.56,2.69]
[1755937722854,24.6825,202.64,202.57,3.97893874]
[1755937723056,24.6825,202.64,202.56,2.69]
[1755937723057,2.68,202.61,202.58,3.97893874]
[1755937723253,4.9374,202.6,202.59,3.97893874]
[1755937723655,2.68,202.63,202.56,2.69]
[1755937723858,2.68,202.63,202.57,3.93706287]
[1755937724066,2.68,202.63,202.58,6.62706287]
[1755937724257,2.68,202.63,202.59,3.93706287]
[1755937724457,4.9373,202.61,202.6,3.93706287]
[1755937724762,2.68,202.67,202.6,3.93706287]
[1755937724952,24.6801,202.66,202.61,3.93706287]
[1755937725154,178.58722454,202.96,202.55,4.9385]
[1755937725155,2.68,202.73,202.63,2.69]
[1755937725355,2.68,202.73,202.64,3.9378857]
[1755937725554,2.68,202.73,202.65,3.9378857]
[1755937725755,2.68,202.73,202.66,3.9378857]
[1755937725954,4.9347,202.72,202.67,3.9378857]
[1755937726260,4.9347,202.72,202.68,3.9378857]
[1755937726461,2.68,202.73,202.65,2.69]
[1755937726657,2.68,202.73,202.66,3.86383887]
[1755937726965,2.68,202.73,202.67,3.86383887]
[1755937727266,2.68,202.73,202.65,7.626]
[1755937727463,2.68,202.73,202.66,3.86383887]
[1755937727762,7.6135,202.77,202.67,3.86383887]
[1755937727962,7.6135,202.77,202.68,6.55383887]
[1755937728258,331.5,202.8,202.7,2.69]
[1755937728461,331.5,202.8,202.71,3.86383887]
[1755937728659,2.68,202.82,202.72,6.55383887]
[1755937728857,2.68,202.82,202.73,3.86383887]
[1755937729062,2.68,202.82,202.65,24.6812]
[1755937729063,2.68,202.9,202.75,2.69]
[1755937729364,2.68,202.9,202.77,2.69]
[1755937729564,2.68,202.9,202.78,3.86383887]
[1755937729757,2.68,202.9,202.79,3.86383887]
[1755937729958,2.68,202.9,202.8,3.86383887]
[1755937730157,7.6102,202.9,202.81,3.86383887]
[1755937730356,2.68,202.9,202.82,3.86232007]
[1755937730556,2.68,202.95,202.81,9.92929776]
[1755937730761,2.68,202.95,202.84,24.6581]
[1755937730961,331.88,203.02,202.84,24.6581]
[1755937730962,2.68,203.0,202.86,9.92929776]
[1755937731168,331.88,203.02,202.86,9.92929776]
[1755937731169,331.88,203.02,202.88,2.69]
[1755937731468,2.68,203.01,202.88,2.69]
[1755937731768,4.9284,202.98,202.88,2.69]
[1755937734770,2.68,202.97,202.88,2.69]
[1755937738980,32.2455,203.01,202.88,2.69]
[1755937739673,7.6076,203.01,202.89,2.69]
[1755937740286,2.68,203.01,202.91,2.69]
[1755937740673,130.0,203.02,202.92,2.69]
[1755937740874,2.68,203.06,202.92,2.69]
[1755937742677,24.6328,203.05,202.92,2.69]
[1755937742878,2.68,203.06,202.92,2.69]
[1755937743178,4.9268,203.04,202.93,4.9294]
[1755937743580,4.9268,203.04,202.94,2.6]
[1755937743977,132.56,203.06,202.96,2.6]
[1755937743978,2.68,203.06,202.96,2.6]
[1755937744580,4.9265,203.05,202.96,2.6]
[1755937745476,4.9265,203.05,202.92,14.85879776]